Cogmind - Beta 10.2 *** ADVENTURER MODE // 2021.05.10 @ 14:42:28 Player: mat Result: Destroyed by G-34 Mercenary with Small Laser Performance ------------- Evolutions (1) 500 Regions Visited (3) 600 Robots Destroyed (26) 130 Value Destroyed (861) 861 Prototype IDs (1) 20 Alien Tech Used (0) 0 Bonus (0) 0 TOTAL SCORE: 2111 Bonus ------- None Cogmind --------- Core Integrity 0/400 Matter 287/300 Energy 100/100 System Corruption 0% Temperature Cool (6) Movement Core (50) Location -9/Storage Parts ------- > --- POWER (1) -------- (None) > --- PROPULSION (2) --- (None) > --- UTILITY (2) ------ Power Shielding > --- WEAPON (4) ------- (None) > --- INVENTORY (4) ---- Light Nuclear Core Light Treads Peak State ------------ > --- POWER ------------ Heavy Ion Engine > --- PROPULSION ------- Light Treads Light Treads > --- UTILITY ---------- Improved Heat Sink Small Storage Unit > --- WEAPON ----------- EM Pulse Gun Medium Laser Particle Gun Light Assault Rifle > --- INVENTORY -------- Light Nuclear Core Light Treads Power Shielding EM Pulse Gun Light Assault Rifle [Rating: 14] Favorites ----------- Power Ion Engine Engine Ion Engine Propulsion Light Treads Treads Light Treads Utility Small Storage Unit Device Improved Heat Sink Storage Small Storage Unit Processor Targeting Computer Protection Power Shielding Weapon Light Assault Rifle Energy Gun EM Pulse Gun Ballistic Gun Light Assault Rifle Build | -11 -10 -9 -9 ------- Run | Scr Mat Mat Sto Slots Evolved 2 | . . 2 . Power . | . . . . Propulsion . | . . . . Utility . | . . . . Weapon 2 | . . 2 . Parts Attached 15 | 6 1 2 6 Power 2 | 1 . . 1 Engine 2 | 1 . . 1 Core . | . . . . Reactor . | . . . . Propulsion 2 | 2 . . . Treads 2 | 2 . . . Leg . | . . . . Wheel . | . . . . Hover . | . . . . Flight . | . . . . Utility 4 | 1 1 . 2 Device 1 | . . . 1 Storage 1 | 1 . . . Processor 1 | . 1 . . Hackware . | . . . . Protection 1 | . . . 1 Artifact . | . . . . Weapon 7 | 2 . 2 3 Energy Gun 5 | 1 . 2 2 Energy Cannon . | . . . . Ballistic Gun 2 | 1 . . 1 Ballistic Cannon . | . . . . Launcher . | . . . . Special Weapon . | . . . . Impact Weapon . | . . . . Slashing Weapon . | . . . . Piercing Weapon . | . . . . Special Melee Weapon . | . . . . Unidentified Prototypes 1 | . . . 1 Parts Lost 12 | . . . 12 Power 1 | . . . 1 Propulsion 2 | . . . 2 Utility 2 | . . . 2 Weapon 7 | . . . 7 Highest Loss Streak 12 | . . . 12 Average Slot Usage (%) 89 | . 91 100 85 Engine 11 | . 14 11 10 Treads 22 | . 28 22 18 Device 3 | . . . 6 Storage 11 | . 14 11 10 Processor 4 | . 5 11 1 Protection 1 | . . . 2 Energy Gun 22 | . 14 33 24 Ballistic Gun 11 | . 14 11 10 Naked Turns . | . . . . Heaviest Build 21 | 12 12 17 21 Greatest Support 40 | 40 40 40 40 Greatest Overweight (x) . | . . . . Average Overweight (x) . | . . . . Largest Inventory Capacity 6 | 6 6 6 6 Average Capacity 5 | 5 6 6 5 Most Carried 6 | 4 6 6 6 Average Carried 4 | 1 4 5 4 Final Capacity 6 | 6 6 6 4 Final Carried 6 | 2 6 6 2 Class Distribution -------------------- 52% | Mutant 47% | Gunner Dominant Class ---------------- Mutant | -10/Materials Gunner | -9/Materials Gunner | -9/Storage Resources | -11 -10 -9 -9 ----------- Run | Scr Mat Mat Sto Matter Collected 403 | 232 110 25 36 Remotely . | . . . . Salvage Created 1044 | . 331 120 593 Parts 64 | . 22 5 37 Haulers Intercepted . | . . . . Recyclers Shooed . | . . . . Parts Field Recycled . | . . . . Retrieved Matter . | . . . . Parts Self-Destructed . | . . . . Prevented . | . . . . Kills | -11 -10 -9 -9 ------- Run | Scr Mat Mat Sto Combat Hostiles Destroyed 21 | . 6 3 12 Guns 19 | . 5 3 11 AOE 2 | . 1 . 1 Classes Destroyed 7 | . 3 1 3 Worker 2 | . 1 . 1 Operator 1 | . . . 1 Watcher 2 | . 2 . . Grunt 15 | . 6 2 7 Brawler 1 | . . 1 . Duelist 2 | . . . 2 Sentry 3 | . . . 3 Best Kill Streak 6 | . 5 3 6 Combat Bots Only 5 | . 3 3 5 Max Kills in Single Turn 2 | . 1 1 2 Gunslinging . | . . . . Exploded 1 | . 1 . 1 Melee . | . . . . Uniques/NPCs Destroyed . | . . . . Combat | -11 -10 -9 -9 -------- Run | Scr Mat Mat Sto Damage Taken 1436 | . 148 40 1248 Core 450 | . 48 . 402 Absorbed by Shields . | . . . . Core Remaining (%) 90 | 100 80 . . Volleys Fired 55 | . 15 5 35 Largest 4 | . 2 4 4 Hottest 175 | . 60 175 175 Shots Fired 173 | . 30 20 123 Gun 173 | . 30 20 123 Cannon . | . . . . Launcher . | . . . . Special . | . . . . Kinetic 66 | . 15 5 46 Thermal 66 | . . 10 56 Explosive . | . . . . Electromagnetic 41 | . 15 5 21 Robot Hit Streak 29 | . 16 29 27 Robot Miss Streak 1 | . 1 1 1 Penetration Max . | . . . . Secondary Targets 3 | . . 1 2 Max Gunslinging Chain 1 | . . 1 1 Shots Hit Robots 142 | . 24 19 99 Core Hits 57 | . 17 6 34 Critical Hits . | . . . . Critical Kills . | . . . . Critical Parts Destroyed . | . . . . Melee Attacks . | . . . . Impact . | . . . . Slashing . | . . . . Piercing . | . . . . Sneak Attacks . | . . . . Combat Hostiles . | . . . . Follow-up Attacks . | . . . . Damage Inflicted 1789 | . 304 229 1256 Guns 1583 | . 281 229 1073 Cannons . | . . . . Explosions 206 | . 23 . 183 Melee . | . . . . Ramming . | . . . . Kinetic 394 | . 73 36 285 Thermal 917 | . 23 129 765 Explosive . | . . . . Electromagnetic 478 | . 208 64 206 Impact . | . . . . Slashing . | . . . . Piercing . | . . . . Highest Corruption . | . . . . Average Corruption . | . . . . Corruption Purged . | . . . . Overload Shots . | . . . . Overflow Damage 3 | . . . 3 Projectiles . | . . . . Explosions 3 | . . . 3 Melee . | . . . . Knockbacks . | . . . . Impact . | . . . . Kinetic . | . . . . Secondary . | . . . . Self-Inflicted Damage 62 | . . . 62 Shots 2 | . . . 2 Rammed . | . . . . Targets Rammed . | . . . . Kicked . | . . . . Crushed . | . . . . Highest Temperature 503 | . 79 503 491 Average Temperature 165 | . 35 251 181 Received Heat Transfer 849 | . 111 30 708 Effects 3 | . . . 3 Shutdowns 1 | . . . 1 Interference 1 | . . . 1 Damage (minor) 1 | . . . 1 Siege Activations . | . . . . Robots Corrupted . | . . . . Combat Hostiles . | . . . . Parts Fried . | . . . . Impact Corruptions . | . . . . Robots Melted . | . . . . Combat Hostiles . | . . . . Parts Melted 4 | . . 1 3 Heat Transferred 2120 | . 50 333 1737 Parts Sabotaged . | . . . . Parts Stolen . | . . . . Parts Stripped . | . . . . Power Chain Reactions 3 | . 1 . 2 Missiles Intercepted . | . . . . Alert | -11 -10 -9 -9 ------- Run | Scr Mat Mat Sto Peak Influence 361 | . 189 137 361 Initial 67 | . . 67 49 Average 151 | . 101 94 233 Maximum Alert Level 1 | . . . 1 Low Security (%) 66 | 100 100 100 28 Level 1 33 | . . . 71 Level 2 . | . . . . Level 3 . | . . . . Level 4 . | . . . . Level 5 . | . . . . High Security . | . . . . Max Security . | . . . . Squads Dispatched 7 | . . . 7 Investigation . | . . . . Extermination . | . . . . Reinforcement 2 | . . . 2 Assault 2 | . . . 2 Garrison 3 | . . . 3 Intercept . | . . . . Construction Impeded . | . . . . Haulers Reinforced . | . . . . Stealth | -11 -10 -9 -9 --------- Run | Scr Mat Mat Sto Distress Signals 5 | . 2 . 3 Communications Jammed . | . . . . Distress Signals . | . . . . Times Spotted 37 | . 8 3 26 Peak Tracking Total 13 | . 4 3 13 Tactical Retreats 1 | . 1 . . Traps | -11 -10 -9 -9 ------- Run | Scr Mat Mat Sto Traps Triggered . | . . . . Indirectly . | . . . . Trap Hack Attempts . | . . . . Triggered . | . . . . Disarmed 6 | . 6 . . Reprogrammed . | . . . . Reused . | . . . . Traps Extracted . | . . . . Installed . | . . . . Triggered . | . . . . Machines | -11 -10 -9 -9 ---------- Run | Scr Mat Mat Sto Machines Disabled 1 | . . . 1 Max in Single Turn 1 | . . . 1 Machines Sabotaged . | . . . . Garrisons Compromised . | . . . . Overloaded Fab Kills . | . . . . Fab Network Shutdowns . | . . . . Hacking | -11 -10 -9 -9 --------- Run | Scr Mat Mat Sto Machines Accessed 5 | . 1 . 4 Terminals 4 | . 1 . 3 Fabricators . | . . . . Repair Stations . | . . . . Recycling Units . | . . . . Scanalyzers . | . . . . Garrison Access 1 | . . . 1 Total Hacks 9 | . 3 . 6 Successful 5 | . 2 . 3 Failed 4 | . 1 . 3 Catastrophic . | . . . . Database Lockouts . | . . . . Manual 3 | . 3 . . Terminals 6 | . 3 . 3 Fabricators . | . . . . Repair Stations . | . . . . Recycling Units . | . . . . Scanalyzers . | . . . . Garrison Access 3 | . . . 3 Terminal Hacks 5 | . 2 . 3 Open Door 2 | . . . 2 Terminal Index 1 | . 1 . . Locate Traps 1 | . . . 1 Disarm Traps 1 | . 1 . . Fabricator Hacks . | . . . . Repair Station Hacks . | . . . . Recycling Unit Hacks . | . . . . Scanalyzer . | . . . . Garrison Access Hacks . | . . . . Unauthorized Hacks . | . . . . Terminals . | . . . . Fabricators . | . . . . Repair Stations . | . . . . Recycling Units . | . . . . Scanalyzers . | . . . . Garrison Access . | . . . . Data Cores Recovered 1 | . . . 1 Used . | . . . . Hacking Detections 3 | . 1 . 2 Full Trace Events 2 | . 1 . 1 Feedback Events . | . . . . Feedback Blocked . | . . . . Robot Schematics Acquired . | . . . . Robots Built . | . . . . Matter . | . . . . Time . | . . . . Total Robot Build Rating . | . . . . Part Schematics Acquired . | . . . . Parts Built . | . . . . Matter . | . . . . Time . | . . . . Total Part Build Rating . | . . . . Parts Repaired . | . . . . Time . | . . . . Parts Recycled . | . . . . Recycled Matter . | . . . . Retrieved Matter . | . . . . Retrieved Components . | . . . . Parts Scanalyzed . | . . . . Part Schematics Acquired . | . . . . Parts Damaged . | . . . . Bothacking | -11 -10 -9 -9 ------------ Run | Scr Mat Mat Sto Used RIF Installer . | . . . . Robots Hacked . | . . . . Non-combat . | . . . . Combat . | . . . . Robot Hacks Applied . | . . . . Relay Couplers Released . | . . . . Robots Rewired . | . . . . Allies Hacked . | . . . . Hacks Repelled . | . . . . Allies | -11 -10 -9 -9 -------- Run | Scr Mat Mat Sto Total Allies 2 | . . . 2 Largest Group 2 | . . . 2 Highest-Rated Group 62 | . . . 62 Highest-Rated Ally 31 | . . . 31 Total Orders . | . . . . Ally Attacks 7 | . . . 7 Total Damage 147 | . . . 147 Kills 1 | . . . 1 Allies Corrupted . | . . . . Allies Melted 1 | . . . 1 Intel | -11 -10 -9 -9 ------- Run | Scr Mat Mat Sto Robot Analysis Total . | . . . . Derelict Logs Recovered . | . . . . Drone Launches . | . . . . Drone Recoveries . | . . . . Exploration | -11 -10 -9 -9 ------------- Run | Scr Mat Mat Sto Turns Passed 766 | 74 218 122 352 Spaces Moved 320 | 45 104 63 108 Core 10 | 10 . . . Treads 310 | 35 104 63 108 Legs . | . . . . Wheels . | . . . . Hover . | . . . . Flight . | . . . . Fastest Speed 50 | 50 160 160 160 Average Speed 156 | 135 160 160 160 Slowest Speed 160 | 160 160 160 160 Overloaded Moves . | . . . . Propulsion Burnouts . | . . . . Robots Hopped . | . . . . Cave-ins Triggered . | . . . . Exploration Rate (%) 18 | 4 34 8 28 Regions Visited 3 Branch Regions 1 Pre-discovered Areas . | . . . . Known Exits Taken . | . . . . Unknown Exits Taken 3 | 1 1 1 . Scrap Searched . | . . . . Spaces Dug . | . . . . Terrain Destroyed 11 | . 6 . 5 Melee . | . . . . Projectile . | . . . . AOE 11 | . 6 . 5 Terrain Rammed . | . . . . Walls Destroyed . | . . . . Machines Disabled . | . . . . Actions | -11 -10 -9 -9 --------- Run | Scr Mat Mat Sto Total 475 | 58 129 73 215 Wait 68 | . 4 . 64 Move 317 | 44 103 62 108 Hop . | . . . . Pick Up 17 | 8 5 3 1 Fast Attach 2 | . 1 . 1 Attach 12 | 6 . 2 4 Detach . | . . . . Swap 1 | . . . 1 Drop 3 | . 1 1 1 Fire 55 | . 15 5 35 Melee . | . . . . Ram . | . . . . Kick . | . . . . Crush . | . . . . Escape Stasis . | . . . . Rewire . | . . . . Trap . | . . . . Miscellaneous . | . . . . Route ------- -11/Scrapyard -10/Materials -9/Materials -9/Storage History --------- Turn | Location | Event 2 | -11/Scrapyard | Met Revision 17 5 | -11/Scrapyard | Discovered new exit (range 15) 75 | -11/Scrapyard | Entered Materials 269 | -10/Materials | Discovered new exit (range 15) 293 | -10/Materials | Entered another Materials area 293 | -9/Materials | Evolved 2 slots: Weapon x2 305 | -9/Materials | Discovered new exit (range 16) 415 | -9/Materials | Entered Storage 457 | -9/Storage | Garrison activated, responded to threat 573 | -9/Storage | Met a pair of Derelict thieves 587 | -9/Storage | Build established: Gunner 728 | -9/Storage | Core integrity fell below 50% 757 | -9/Storage | Core integrity fell below 20% 767 | -9/Storage | Destroyed by G-34 Mercenary with Small Laser Last Messages --------------- Lgt. Treads destroyed. Overheating: Sml. Storage Unit damaged (-71). K-01 Serf collects debris. R-06 Scavenger collects Core Shielding. K-01 Serf collects debris. R-06 Scavenger collects Sml. Laser. K-01 Serf collects debris. R-06 Scavenger collects Imp. Ion Engine. K-01 Serf collects debris. R-06 Scavenger collects Ion Engine. Sml. Storage Unit destroyed. K-01 Serf collects debris. Hvy. Ion Engine destroyed. K-01 Serf collects debris. R-06 Scavenger collects Beam Rifle. K-01 Serf collects debris. R-06 Scavenger collects Heat Sink. K-01 Serf cleans the Compression Vault. R-06 Scavenger collects Lgt. Armor Plating. K-01 Serf cleans the Compression Vault. Map ----- +----------------------------------------------------+ | ????????????????????????????? | | ????????????????????????????? | | ????????????????????????????? | | ????????????????????????????? | | ????????????????????????????? | | ????????????????????????????? | | ????????????????????????????? | | ????????????????????????????? | | ????????????????????????????? | | ????????????????????????????? | | ????????????????????????????? | | ???????? ??????????????????? | | ???????? ??????????????????? | | ???????? ????#?????????????? | | ???????? #?? ???????????? | | ???????# ### "#???????????? | | ???????+ " #???????????? | | ???????# ^ "???????????? | | ???????#^ Y???????????? | | ???????# "???????????? | | ???????# ##??????????? | | ???###?# ^""" "#??????????? | | ####%### """" T#??????????? | | # = ug#^ """"% "#####??????? | | # igl# %"""" ##! !#??????? | | # @gggr """" ##! !#??????? | | # uu#g = ##! !#??????? | | # k # ##! !#??????? | | # """ # ###% ### ##??????? | | # """ # #?# + T#??????? | | # """ # #?# # ##??????? | | ######## #?# #####???????? | | ???????# #?# #???????????? | | ??????? ?# ##??????????? | | ??????? ?# T#??????????? | | ??????# ?# ##??????????? | | ??????# ## #???????????? | | ??????####### #???????????? | | ?????####???# #???????????? | | ?????#"""???# #???????????? | | ??####"T"#### #???????????? | | ??# # #########???? | | ???# #% # # !!#???? | | ???#"""" # + " ! #???? | | ???#""""=%[[#% # !#???? | | ???#""" [!%/ # " #???? | | ???#"""" #%! ##T# !! #???? | | ???# #* #### ! !#???? | | ???# #% #??######???? | | ???# ==! # #???????????? | +----------------------------------------------------+ Best States ------------- Heat Dissipation 42 Energy Generation 14 Energy Capacity 280 Matter Stores 300 Matter Capacity 300 Sight Range 16 Terrain Scan Density 10 Resistance: KI 20 Resistance: TH 20 Resistance: EX 20 Resistance: EM 20 Resistance: I 20 Resistance: S 20 Resistance: P 20 Power Shielding 33 Evasion (%) 40 Targeting Accuracy 5 Recoil Reduction 2 Offensive Hacking 10 Item Schematics ----------------- None Robot Schematics ------------------ None Fabricated ------------ Nothing Alien Tech Used ----------------- None Achievements -------------- None Challenges ------------ None Game ------ Seed MiningBombBattery Manual? 0 Play Time 00:17:10 Cumulative 96.7 hours Start 2021.05.10 @ 14:22:47 End 2021.05.10 @ 14:42:28 Sessions 1 Manual Loads 0 Difficulty Adventurer Special Mode None Game No. 173 Rogue 172 Adventurer 1 Explorer 0 Win Type - Total 1 Types 1/0/0/0/0/0/0/0/0 Lore% 51 Gallery% 48 Achievement% 43 Wizard Run 0 Options --------- ASCII 0 Keyboard 0 Movement Mouse Keybinds 0 Fullscreen 1 Font 18/SmallcapsGlow Map View 76x50 Tactical HUD 0 Map Filters NONE Filters NONE Steam 1 RUN: d07d85cd-9892-4a79-9960-addb80241ced